[Event "3rd BSSZ-Aranytiz IM 2019"]
[Site "Budapest"]
[Date "2019.08.17"]
[Round "2.4"]
[White "Luong, Phuong Hanh"]
[Black "Persanyi, Barnabas"]
[Result "0-1"]
[ECO "A46"]
[WhiteElo "2313"]
[BlackElo "2399"]
[Annotator "NA"]
[PlyCount "146"]
[EventDate "2019.08.16"]
[EventType "tourn"]
[EventCountry "HUN"]
[SourceTitle "playchess.com"]
[Source "ChessBase"]
[SourceQuality "1"]
[TimeControl "40/5400+30:1800+30"]

1. d4 {[%emt 0:00:38]} Nf6 {[%emt 0:00:26]} 2. Nf3 {[%emt 0:00:22]} e6 3. e3 {[%emt 0:00:31]} b6 {[%emt 0:00:56]} 4. Bd3 {[%emt 0:00:00]} Bb7 {[%emt 0:00:28]} 5. O-O d5 {[%emt 0:00:23]} 6. b3 {[%emt 0:00:24]} Bd6 {[%emt 0:00:22]} 7. Bb2 {[%emt 0:00:18]} O-O {[%emt 0:03:19]} 8. Ne5 {[%emt 0:01:38]} c5 {[%emt 0:01:53]} 9. Nd2 {[%emt 0:01:41]} Nc6 10. a3 {[%emt 0:07:18]} Rc8 {[%emt 0:07:31]} 11. Qf3 {[%emt 0:07:59]} Ne7 {[%emt 0:13:57]} 12. dxc5 {[%emt 0:01:22]} bxc5 {[%emt 0:17:52]} 13. Qh3 {[%emt 0:06:04]} Ng6 {[%emt 0:03:50]} 14. Bxg6 {[%emt 0:07:45]} hxg6 {[%emt 0:00:30]} 15. Rfd1 {[%emt 0:09:47]} Qe7 {[%emt 0:03:56]} 16. Qh4 {[%emt 0:03:41]} Rfd8 {[%emt 0:09:36]} 17. Ndf3 {[%emt 0:00:52]} Ne4 {[%emt 0:11:56]} 18. Qg4 {[%emt 0:06:15]} Nf6 {[%emt 0:01:14]} 19. Qa4 {[%emt 0:08:54]} a6 {[%emt 0:03:21]} 20. Qh4 {[%emt 0:01:11]} Ne4 {[%emt 0:03:05]} 21. Qg4 {[%emt 0:00:33]} g5 22. h4 {[%emt 0:02:00]} Bxe5 {[%emt 0:05:39]} 23. Nxe5 {[%emt 0:00:58]} d4 {[%emt 0:01:35]} 24. exd4 {[%emt 0:04:31]} gxh4 {[%emt 0:01:17]} 25. dxc5 Qxc5 {[%emt 0:00:11]} 26. Rxd8+ {[%emt 0:09:11]} Rxd8 {[%emt 0:01:10]} 27. Qxh4 {[%emt 0:10:26]} g5 28. Qg4 {[%emt 0:02:30]} Qxf2+ {[%emt 0:00:54]} 29. Kh2 {[%emt 0:00:53]} Rd2 {[%emt 0:05:09]} 30. Nf3 {[%emt 0:00:17]} Rxc2 {[%emt 0:01:32]} 31. Bd4 {[%emt 0:01:40]} f5 32. Qh3 Qxg2+ {[%emt 0:01:16]} 33. Qxg2 {[%emt 0:00:32]} Rxg2+ {[%emt 0:00:07]} 34. Kxg2 {[%emt 0:01:05]} Nd2 {[%emt 0:00:27]} 35. Kf2 {[%emt 0:00:36]} Nxf3 {[%emt 0:01:09]} 36. Bc3 {[%emt 0:02:54]} Bd5 {[%emt 0:00:30]} 37. Rd1 {[%emt 0:00:00]} g4 {[%emt 0:00:35]} 38. Kg3 {[%emt 0:00:14]} Bxb3 {[%emt 0:00:16]} 39. Rd8+ {[%emt 0:00:00]} Kf7 {[%emt 0:00:00]} 40. Kf4 {[%emt 0:00:00]} Bd5 {[%emt 0:00:00]} 41. Rd7+ {[%emt 0:03:21]} Kg6 {[%emt 0:07:24]} 42. Rg7+ {[%emt 0:03:57]} Kh5 43. Ra7 {[%emt 0:00:55]} Ng1 {[%emt 0:02:57]} 44. Be5 Nf3 {[%emt 0:04:42]} 45. Bc3 {[%emt 0:01:09]} Ng1 {[%emt 0:00:31]} 46. Be5 {[%emt 0:00:56]} Nh3+ 47. Kg3 Ng5 {[%emt 0:05:13]} 48. Rxa6 {[%emt 0:00:53]} Ne4+ {[%emt 0:00:43]} 49. Kh2 {[%emt 0:03:26]} Kh4 {[%emt 0:00:24]} 50. Ra7 {[%emt 0:00:06]} g3+ {[%emt 0:02:21]} 51. Kg1 {[%emt 0:01:39]} Kg4 {[%emt 0:00:30]} 52. Rf7 Kf3 {[%emt 0:01:46]} 53. Rg7 {[%emt 0:01:37]} f4 {[%emt 0:02:24]} 54. Kf1 {[%emt 0:06:00]} Ke3 {[%emt 0:02:16]} 55. Ke1 {[%emt 0:01:43]} Nf2 56. Bc7 {[%emt 0:00:01]} Nd3+ {[%emt 0:01:31]} 57. Kf1 {[%emt 0:05:29]} g2+ {[%emt 0:01:58]} 58. Kg1 {[%emt 0:00:11]} f3 {[%emt 0:00:05]} 59. Bb6+ {[%emt 0:03:29]} Ke2 {[%emt 0:02:20]} 60. Rc7 {[%emt 0:00:57]} Nf4 {[%emt 0:01:28]} 61. Kh2 {[%emt 0:04:20]} e5 {[%emt 0:00:21]} 62. Rc2+ {[%emt 0:00:30]} Kd3 {[%emt 0:01:25]} 63. Rc1 {[%emt 0:00:38]} e4 {[%emt 0:00:40]} 64. Re1 {[%emt 0:02:13]} Bc6 {[%emt 0:01:20]} 65. a4 {[%emt 0:01:08]} Ne2 66. Ra1 {[%emt 0:00:55]} Nc3 {[%emt 0:01:41]} 67. Ra3 {[%emt 0:00:20]} Kc4 {[%emt 0:00:00]} 68. a5 {[%emt 0:00:39]} Nd5 {[%emt 0:00:29]} 69. Bf2 {[%emt 0:00:39]} Kb4 {[%emt 0:00:11]} 70. Ra1 e3 {[%emt 0:00:12]} 71. Be1+ {[%emt 0:01:05]} Kb3 {[%emt 0:00:33]} 72. a6 {[%emt 0:01:40]} Nf6 {[%emt 0:00:40]} 73. Bh4 f2 0-1

[Event "3rd BSSZ-Aranytiz IM 2019"]
[Site "Budapest"]
[Date "2019.08.17"]
[Round "2.5"]
[White "Urhegyi, Marton"]
[Black "Hamblok, Roel"]
[Result "0-1"]
[ECO "C07"]
[WhiteElo "2256"]
[BlackElo "2261"]
[Annotator "NA"]
[PlyCount "138"]
[EventDate "2019.08.16"]
[EventType "tourn"]
[EventCountry "HUN"]
[SourceTitle "playchess.com"]
[Source "ChessBase"]
[SourceQuality "1"]
[TimeControl "40/5400+30:1800+30"]

1. e4 {[%emt 0:00:02]} e6 {[%emt 0:00:06]} 2. d4 {[%emt 0:00:06]} d5 {[%emt 0:00:05]} 3. Nd2 {[%emt 0:00:04]} c5 {[%emt 0:00:07]} 4. exd5 {[%emt 0:00:37]} Qxd5 {[%emt 0:00:12]} 5. Ngf3 {[%emt 0:02:00]} cxd4 {[%emt 0:00:24]} 6. Bc4 {[%emt 0:00:27]} Qd7 {[%emt 0:00:06]} 7. O-O {[%emt 0:01:12]} Nc6 {[%emt 0:00:05]} 8. Nb3 {[%emt 0:01:09]} Nf6 {[%emt 0:00:37]} 9. Nbxd4 {[%emt 0:01:53]} Nxd4 {[%emt 0:00:35]} 10. Nxd4 {[%emt 0:00:41]} a6 {[%emt 0:00:16]} 11. c3 {[%emt 0:03:37]} Qc7 {[%emt 0:04:41]} 12. Bd3 {[%emt 0:09:09]} Bd6 {[%emt 0:00:26]} 13. h3 {[%emt 0:01:20]} h6 {[%emt 0:01:54]} 14. Re1 {[%emt 0:10:12]} O-O {[%emt 0:01:53]} 15. Qf3 {[%emt 0:02:57]} Be5 {[%emt 0:02:59]} 16. Qe3 {[%emt 0:08:02]} Bd6 {[%emt 0:02:54]} 17. Qf3 {[%emt 0:00:41]} Be5 {[%emt 0:02:26]} 18. Be3 {[%emt 0:15:27]} Bd7 {[%emt 0:10:11]} 19. Re2 {[%emt 0:09:27]} Nd5 {[%emt 0:12:39]} 20. Rae1 {[%emt 0:07:30]} Nxe3 {[%emt 0:09:19]} 21. Rxe3 {[%emt 0:01:44]} Bf4 {[%emt 0:01:15]} 22. R3e2 {[%emt 0:05:48]} Rad8 {[%emt 0:11:38]} 23. Bc2 {[%emt 0:00:49]} Bg5 {[%emt 0:03:30]} 24. h4 {[%emt 0:02:12]} Bf6 {[%emt 0:01:13]} 25. h5 {[%emt 0:07:31]} Bxd4 {[%emt 0:03:44]} 26. cxd4 {[%emt 0:00:11]} Bb5 {[%emt 0:04:59]} 27. Rd2 {[%emt 0:02:31]} Rfe8 {[%emt 0:03:11]} 28. a4 {[%emt 0:03:32]} Bc6 {[%emt 0:05:55]} 29. Qd3 {[%emt 0:01:30]} Qf4 {[%emt 0:00:53]} 30. Qh7+ {[%emt 0:01:52]} Kf8 {[%emt 0:00:01]} 31. Re3 {[%emt 0:00:44]} Rd5 {[%emt 0:06:46]} 32. Be4 {[%emt 0:00:30]} Rxh5 {[%emt 0:00:50]} 33. Bxc6 {[%emt 0:00:24]} bxc6 {[%emt 0:00:52]} 34. g3 {[%emt 0:00:31]} Qg4 {[%emt 0:00:30]} 35. Rc3 {[%emt 0:00:28]} g6 {[%emt 0:02:41]} 36. Kg2 {[%emt 0:00:36]} Rd8 {[%emt 0:01:44]} 37. b3 {[%emt 0:00:33]} Qe4+ {[%emt 0:01:22]} 38. Rf3 {[%emt 0:00:19]} Rd7 {[%emt 0:01:21]} 39. Qh8+ {[%emt 0:00:40]} Ke7 {[%emt 0:00:06]} 40. Qf6+ {[%emt 0:00:00]} Kd6 {[%emt 0:00:00]} 41. Qf4+ {[%emt 0:04:20]} Qxf4 {[%emt 0:02:56]} 42. Rxf4 {[%emt 0:00:59]} Rd5 {[%emt 0:04:02]} 43. Rh4 {[%emt 0:03:12]} h5 {[%emt 0:00:41]} 44. Rc2 {[%emt 0:00:45]} Rb7 {[%emt 0:01:09]} 45. Rc3 {[%emt 0:02:00]} Rb4 {[%emt 0:00:15]} 46. Rd3 {[%emt 0:01:36]} Kc7 {[%emt 0:02:19]} 47. f3 {[%emt 0:12:49]} a5 {[%emt 0:10:49]} 48. Re4 {[%emt 0:03:12]} Kd6 {[%emt 0:01:39]} 49. f4 {[%emt 0:01:25]} Kd7 {[%emt 0:04:58]} 50. Re5 {[%emt 0:01:14]} f6 {[%emt 0:03:58]} 51. Rxd5+ {[%emt 0:00:54]} cxd5 {[%emt 0:00:47]} 52. Rc3 {[%emt 0:02:40]} Rxd4 {[%emt 0:00:39]} 53. Rc5 {[%emt 0:00:07]} Rd2+ {[%emt 0:00:18]} 54. Kh3 {[%emt 0:01:00]} e5 {[%emt 0:03:32]} 55. fxe5 {[%emt 0:00:53]} fxe5 {[%emt 0:00:01]} 56. g4 {[%emt 0:01:10]} Rd3+ {[%emt 0:00:46]} 57. Kg2 {[%emt 0:00:32]} Kd6 {[%emt 0:01:04]} 58. Rxa5 {[%emt 0:00:06]} Rxb3 {[%emt 0:00:01]} 59. Ra6+ {[%emt 0:00:32]} Kc5 {[%emt 0:00:10]} 60. Rxg6 {[%emt 0:00:40]} hxg4 {[%emt 0:00:06]} 61. a5 {[%emt 0:00:10]} Ra3 {[%emt 0:00:43]} 62. Rxg4 {[%emt 0:00:32]} Rxa5 {[%emt 0:00:05]} 63. Kf2 {[%emt 0:00:09]} e4 {[%emt 0:00:23]} 64. Ke3 {[%emt 0:00:24]} Ra3+ {[%emt 0:00:05]} 65. Ke2 {[%emt 0:00:05]} Kd4 {[%emt 0:00:07]} 66. Ke1 {[%emt 0:00:53]} Kd3 {[%emt 0:00:25]} 67. Rg5 {[%emt 0:00:21]} d4 {[%emt 0:00:12]} 68. Rb5 {[%emt 0:00:03]} Ra1+ {[%emt 0:00:39]} 69. Kf2 {[%emt 0:00:06]} e3+ {[%emt 0:00:09]} 0-1

[Event "3rd BSSZ-Aranytiz IM 2019"]
[Site "Budapest"]
[Date "2019.08.18"]
[Round "3.1"]
[White "Hamblok, Roel"]
[Black "Juhasz, Barbara"]
[Result "0-1"]
[ECO "A49"]
[WhiteElo "2261"]
[BlackElo "2157"]
[Annotator "NA"]
[PlyCount "72"]
[EventDate "2019.08.16"]
[EventType "tourn"]
[EventCountry "HUN"]
[SourceTitle "playchess.com"]
[Source "ChessBase"]
[SourceQuality "1"]
[TimeControl "40/5400+30:1800+30"]

1. d4 {[%emt 0:00:03]} Nf6 {[%emt 0:00:12]} 2. Nf3 {[%emt 0:00:07]} g6 {[%emt 0:00:09]} 3. g3 {[%emt 0:00:16]} Bg7 {[%emt 0:00:14]} 4. Bg2 {[%emt 0:00:28]} O-O {[%emt 0:00:08]} 5. O-O {[%emt 0:00:07]} d6 {[%emt 0:00:11]} 6. b3 {[%emt 0:00:11]} c5 {[%emt 0:00:48]} 7. c4 {[%emt 0:01:04]} e5 {[%emt 0:00:07] E60: King's Indian: Unusual lines and Fianchetto Variation without Nc3} 8. dxe5 {[%emt 0:03:53]} dxe5 {[%emt 0:00:06]} 9. Bb2 {[%emt 0:04:58]} e4 {[%emt 0:00:15]} 10. Nfd2 $146 {[%emt 0:13:25]} ({Predecessor:} 10. Qxd8 Rxd8 11. Ng5 Re8 12. Nc3 h6 13. Nh3 g5 14. Nb5 Na6 15. Rad1 {½-½ (67) Meier,G (2647)-Libiszewski,F (2530) chess.com INT 2018}) 10... Qe7 {[%emt 0:03:17]} 11. e3 {[%emt 0:08:08]} Bf5 {[%emt 0:10:18]} (11... Rd8 $15) 12. Nc3 {[%emt 0:01:24]} Re8 {[%emt 0:07:59]} 13. Nd5 {[%emt 0:12:07]} Nxd5 {[%emt 0:09:14]} 14. Bxg7 {[%emt 0:00:08]} Kxg7 {[%emt 0:12:50]} 15. cxd5 {[%emt 0:00:10]} h5 {[%emt 0:00:05]} 16. Qc2 {[%emt 0:04:13]} Nd7 {[%emt 0:00:51]} 17. Rac1 {[%emt 0:00:38]} Rac8 {[%emt 0:03:05]} 18. Rfd1 {[%emt 0:07:05]} Bg4 {[%emt 0:05:34]} 19. Nxe4 {[%emt 0:12:43]} Bxd1 $14 {[%emt 0:00:06]} 20. Rxd1 {[%emt 0:00:14]} b6 {[%emt 0:07:54]} 21. Qb2+ {[%emt 0:05:13]} f6 {[%emt 0:00:24]} 22. Qa3 {[%emt 0:03:19]} Ne5 {[%emt 0:01:18]} 23. f4 {[%emt 0:10:00]} Ng4 {[%emt 0:03:18]} 24. d6 {[%emt 0:00:09]} Qd7 {[%emt 0:00:12]} 25. Qb2 {[%emt 0:00:18]} Re6 {[%emt 0:01:00]} 26. Qc3 {[%emt 0:08:40]} Rce8 {[%emt 0:04:41]} 27. h3 {[%emt 0:00:30]} Nh6 {[%emt 0:00:03]} 28. Qd3 {[%emt 0:00:44]} Nf7 {[%emt 0:12:41]} 29. g4 {[%emt 0:02:29]} hxg4 {[%emt 0:00:39]} 30. hxg4 {[%emt 0:00:02]} Rxe4 {[%emt 0:00:32]} 31. Bxe4 {[%emt 0:00:12]} Rxe4 {[%emt 0:00:04]} 32. Kf2 {[%emt 0:01:22]} Re6 {[%emt 0:00:23]} 33. g5 {[%emt 0:00:36]} fxg5 {[%emt 0:02:00]} 34. Qc3+ {[%emt 0:00:08]} Kf8 {[%emt 0:00:51]} 35. Rh1 {[%emt 0:00:23]} Qxd6 {[%emt 0:00:31]} 36. Rh7 {[%emt 0:01:01]} Rf6 0-1

[Event "3rd BSSZ-Aranytiz IM 2019"]
[Site "Budapest"]
[Date "2019.08.18"]
[Round "3.2"]
[White "Persanyi, Barnabas"]
[Black "Urhegyi, Marton"]
[Result "1-0"]
[ECO "A20"]
[WhiteElo "2399"]
[BlackElo "2256"]
[Annotator "NA"]
[PlyCount "63"]
[EventDate "2019.08.16"]
[EventType "tourn"]
[EventCountry "HUN"]
[SourceTitle "playchess.com"]
[Source "ChessBase"]
[SourceQuality "1"]
[TimeControl "40/5400+30:1800+30"]

1. c4 {[%emt 0:00:18]} e5 {[%emt 0:00:10]} 2. g3 {[%emt 0:00:26]} c6 {[%emt 0:00:21]} 3. Bg2 {[%emt 0:00:38]} d5 {[%emt 0:00:25]} 4. cxd5 {[%emt 0:00:35]} cxd5 {[%emt 0:00:17]} 5. d4 {[%emt 0:00:16]} e4 {[%emt 0:00:42]} 6. Nc3 {[%emt 0:01:38]} Nf6 {[%emt 0:01:02]} 7. Bg5 {[%emt 0:01:48]} Nbd7 {[%emt 0:00:22]} 8. Qb3 {[%emt 0:12:06]} Bd6 {[%emt 0:00:13]} 9. Nh3 {[%emt 0:03:50]} h6 {[%emt 0:00:45]} 10. Bf4 {[%emt 0:04:08]} Nb6 {[%emt 0:02:00]} 11. a4 {[%emt 0:05:21]} O-O {[%emt 0:28:38]} 12. Be5 {[%emt 0:13:25]} Be6 {[%emt 0:21:07]} 13. Nf4 {[%emt 0:07:17]} g5 {[%emt 0:03:25]} 14. Nxe6 {[%emt 0:14:31]} fxe6 $14 {[%emt 0:00:18]} 15. a5 {[%emt 0:02:58]} Nc4 {[%emt 0:04:43]} 16. Nxe4 {[%emt 0:02:02]} Nxe4 {[%emt 0:03:16]} 17. Bxe4 {[%emt 0:00:14]} Nxa5 {[%emt 0:05:56]} 18. Bh7+ {[%emt 0:01:16]} Kxh7 {[%emt 0:03:17]} 19. Qd3+ {[%emt 0:01:04]} Rf5 {[%emt 0:00:06]} 20. g4 {[%emt 0:02:45]} Bb4+ {[%emt 0:05:10]} 21. Kf1 {[%emt 0:00:42]} Qd7 {[%emt 0:02:11]} 22. h4 {[%emt 0:01:53]} Rg8 {[%emt 0:07:51]} 23. gxf5 {[%emt 0:01:10]} exf5 {[%emt 0:00:06]} 24. hxg5 {[%emt 0:01:01]} Rxg5 {[%emt 0:00:11]} 25. Bf4 {[%emt 0:00:42]} Rg6 {[%emt 0:01:29]} 26. Rh5 {[%emt 0:00:39]} Qg7 {[%emt 0:05:54]} 27. Qxf5 {[%emt 0:01:09]} Nb3 {[%emt 0:01:30]} 28. Rxa7 {[%emt 0:04:33]} Nxd4 {[%emt 0:01:23]} 29. Rxh6+ {[%emt 0:00:46]} Qxh6 {[%emt 0:00:34]} 30. Rxb7+ {[%emt 0:00:14]} Kh8 {[%emt 0:00:58]} 31. Be5+ {[%emt 0:00:18]} Kg8 {[%emt 0:00:35]} 32. Qf7# {[%emt 0:00:08]} 1-0

[Event "3rd BSSZ-Aranytiz IM 2019"]
[Site "Budapest"]
[Date "2019.08.18"]
[Round "3.3"]
[White "Farago, Sandor"]
[Black "Luong, Phuong Hanh"]
[Result "1/2-1/2"]
[ECO "B43"]
[WhiteElo "2211"]
[BlackElo "2313"]
[Annotator "NA"]
[PlyCount "161"]
[EventDate "2019.08.16"]
[EventType "tourn"]
[EventCountry "HUN"]
[SourceTitle "playchess.com"]
[Source "ChessBase"]
[SourceQuality "1"]
[TimeControl "40/5400+30:1800+30"]

1. e4 {[%emt 0:00:45]} c5 {[%emt 0:00:22]} 2. Nf3 {[%emt 0:00:11]} e6 {[%emt 0:00:23]} 3. d4 {[%emt 0:00:30]} cxd4 {[%emt 0:00:04]} 4. Nxd4 {[%emt 0:00:08]} a6 {[%emt 0:00:04]} 5. Nc3 {[%emt 0:02:45]} Qc7 {[%emt 0:00:06]} 6. Bd3 {[%emt 0:01:33]} Nf6 {[%emt 0:00:11]} 7. O-O {[%emt 0:09:01]} Bc5 {[%emt 0:00:05]} 8. Nb3 {[%emt 0:00:48]} Be7 {[%emt 0:00:06]} 9. f4 {[%emt 0:01:21]} ({Predecessor:} 9. Be3 b5 10. f4 {0-1 (38) Magyar,A (2245)-Bui,V (2448) Zalakaros 2008}) 9... d6 {[%emt 0:00:06]} 10. Be3 $146 {[%emt 0:01:09] B43: Sicilian: Kan Variation: 5 Nc3} (10. e5 dxe5 11. fxe5 Nfd7 12. Qg4 g6 13. Bf4 Nc6 14. Rae1 Ndxe5 15. Qg3 f6 16. Be4 O-O 17. Kh1 Bd7 18. Bxg6 hxg6 19. Rxe5 Nxe5 20. Bxe5 fxe5 21. Qxg6+ Kh8 22. Qh6+ Kg8 23. Qg6+ {½-½ (23) Kadric,D (2537)-Akopian,V (2655) Abu Dhabi 2018}) 10... b5 {[%emt 0:00:45]} 11. e5 {[%emt 0:04:36]} Nfd7 {[%emt 0:01:00]} 12. exd6 {[%emt 0:03:42]} Bxd6 {[%emt 0:00:07]} 13. Be4 {[%emt 0:07:14]} Nc6 {[%emt 0:01:25]} 14. Nd4 {[%emt 0:01:00]} Nxd4 {[%emt 0:01:20]} 15. Bxa8 {[%emt 0:00:21]} Nf5 {[%emt 0:00:08]} 16. Bf2 {[%emt 0:15:40]} Bxf4 {[%emt 0:00:51]} 17. g3 {[%emt 0:00:07]} Be3 {[%emt 0:07:09]} (17... Be5 $11) 18. Be4 {[%emt 0:06:54]} Bxf2+ {[%emt 0:01:35]} 19. Rxf2 {[%emt 0:00:09]} Nd6 {[%emt 0:03:39]} 20. Qd4 {[%emt 0:01:19]} O-O {[%emt 0:02:56]} 21. Rd1 {[%emt 0:10:00]} Nc4 {[%emt 0:00:48]} 22. b3 {[%emt 0:00:55]} Nce5 {[%emt 0:00:19]} 23. Bg2 {[%emt 0:01:10]} Nf6 {[%emt 0:03:20]} 24. Ne4 {[%emt 0:03:39]} Nfg4 {[%emt 0:03:54]} 25. Re2 {[%emt 0:05:22]} Ng6 {[%emt 0:04:28]} 26. Qc5 $18 {[%emt 0:02:38]} Qa5 {[%emt 0:00:44]} 27. a4 {[%emt 0:00:22]} N4e5 {[%emt 0:07:05]} 28. Red2 {[%emt 0:06:33]} Nd7 {[%emt 0:00:37]} 29. Qa7 {[%emt 0:01:59]} bxa4 {[%emt 0:08:30]} 30. Rxd7 {[%emt 0:01:54]} Bxd7 {[%emt 0:00:07]} 31. Qxd7 {[%emt 0:00:10]} axb3 {[%emt 0:02:19]} 32. cxb3 {[%emt 0:03:47]} Qb6+ {[%emt 0:00:01]} 33. Qd4 {[%emt 0:00:28]} Qxb3 {[%emt 0:00:08]} 34. Nc5 {[%emt 0:00:21]} Qa2 {[%emt 0:00:50]} 35. Nd7 {[%emt 0:01:34]} Rc8 {[%emt 0:01:33]} 36. Bb7 {[%emt 0:00:17]} Rc4 {[%emt 0:03:38]} 37. Qd6 {[%emt 0:02:22]} h5 {[%emt 0:00:23]} 38. Ne5 {[%emt 0:01:11]} Rc2 {[%emt 0:03:35]} 39. Nxg6 {[%emt 0:03:24]} fxg6 {[%emt 0:00:14]} 40. Be4 {[%emt 0:00:00]} Rxh2 {[%emt 0:00:00]} 41. Rf1 {[%emt 0:01:29]} Kh7 {[%emt 0:04:50]} 42. Qf4 {[%emt 0:10:56]} Re2 {[%emt 0:07:12]} 43. g4 {[%emt 0:02:45]} Qa5 {[%emt 0:02:12]} 44. gxh5 {[%emt 0:04:35]} Qc5+ {[%emt 0:00:21]} 45. Rf2 {[%emt 0:01:11]} Re1+ {[%emt 0:00:48]} 46. Kg2 {[%emt 0:00:15]} Qxh5 {[%emt 0:00:10]} 47. Bf3 {[%emt 0:02:21]} e5 {[%emt 0:10:14]} 48. Bxh5 {[%emt 0:04:10]} exf4 {[%emt 0:00:03]} 49. Be2 {[%emt 0:01:10]} a5 {[%emt 0:00:15]} 50. Kf3 {[%emt 0:00:21]} g5 {[%emt 0:01:13]} 51. Bd3+ {[%emt 0:02:01]} Kg8 {[%emt 0:00:03]} 52. Kg4 {[%emt 0:00:43]} Re5 {[%emt 0:03:26]} 53. Bg6 {[%emt 0:01:08]} Kf8 {[%emt 0:00:44]} 54. Bf5 {[%emt 0:01:20]} g6 {[%emt 0:07:14]} 55. Bxg6 {[%emt 0:00:36]} Kg7 {[%emt 0:00:06]} 56. Bc2 {[%emt 0:00:26]} Kf6 {[%emt 0:00:54]} 57. Rd2 {[%emt 0:01:34]} Re3 {[%emt 0:00:25]} 58. Rd5 {[%emt 0:01:03]} Rg3+ {[%emt 0:02:02]} 59. Kh5 {[%emt 0:00:06]} Rg2 {[%emt 0:00:43]} 60. Be4 {[%emt 0:01:33]} Re2 {[%emt 0:01:23]} 61. Rf5+ {[%emt 0:01:07]} Ke6 {[%emt 0:00:02]} 62. Bb1 {[%emt 0:01:29]} Re5 {[%emt 0:06:36]} 63. Rf8 {[%emt 0:00:39]} Ke7 {[%emt 0:01:17]} 64. Rb8 {[%emt 0:00:49]} Kd6 {[%emt 0:02:13]} 65. Kg4 {[%emt 0:00:20]} Kc5 {[%emt 0:00:11]} 66. Bd3 {[%emt 0:00:49]} Kd4 {[%emt 0:00:43]} 67. Bb5 {[%emt 0:00:28]} Rc5 {[%emt 0:00:44]} 68. Be2 {[%emt 0:00:27]} Kc3 {[%emt 0:01:47]} 69. Ra8 {[%emt 0:00:40]} Re5 {[%emt 0:00:34]} 70. Bf3 {[%emt 0:00:30]} Kb4 {[%emt 0:00:51]} 71. Rb8+ {[%emt 0:00:10]} Ka3 {[%emt 0:00:06]} 72. Rb7 {[%emt 0:00:13]} a4 {[%emt 0:00:35]} 73. Rb8 Ka2 {[%emt 0:01:10]} 74. Rb7 {[%emt 0:00:14]} a3 {[%emt 0:00:29]} 75. Rb8 {[%emt 0:00:25]} Ka1 {[%emt 0:01:18]} 76. Rb3 {[%emt 0:00:42]} Ka2 {[%emt 0:01:43]} 77. Rb7 {[%emt 0:00:06]} Rc5 {[%emt 0:00:15]} 78. Rb8 {[%emt 0:00:16]} Rc2 {[%emt 0:04:28]} 79. Kxg5 {[%emt 0:00:33]} Rb2 {[%emt 0:00:02]} 80. Bd5+ {[%emt 0:00:22]} Ka1 {[%emt 0:00:23]} 81. Ra8 {[%emt 0:00:43]} 1/2-1/2

[Event "3rd BSSZ-Aranytiz IM 2019"]
[Site "Budapest"]
[Date "2019.08.18"]
[Round "3.4"]
[White "Havanecz, Bianka"]
[Black "Maerevoet, Sim"]
[Result "0-1"]
[ECO "A40"]
[WhiteElo "2281"]
[BlackElo "2321"]
[Annotator "NA"]
[PlyCount "106"]
[EventDate "2019.08.16"]
[EventType "tourn"]
[EventCountry "HUN"]
[SourceTitle "playchess.com"]
[Source "ChessBase"]
[SourceQuality "1"]
[TimeControl "40/5400+30:1800+30"]

1. d4 {[%emt 0:00:02]} Nf6 {[%emt 0:00:31]} 2. c4 {[%emt 0:00:09]} e6 {[%emt 0:00:57]} 3. g3 {[%emt 0:01:47]} d5 {[%emt 0:00:43]} 4. Nf3 {[%emt 0:00:29]} dxc4 {[%emt 0:00:59]} 5. Qa4+ {[%emt 0:00:25]} Bd7 {[%emt 0:05:00]} 6. Qxc4 {[%emt 0:00:06]} Bc6 {[%emt 0:02:51]} 7. Bg2 {[%emt 0:00:11]} Nbd7 {[%emt 0:00:29]} 8. Nc3 {[%emt 0:02:09]} Bd6 {[%emt 0:04:03] E02: Open Catalan: 5 Qa4+} 9. O-O {[%emt 0:00:51]} O-O {[%emt 0:00:17]} 10. Rd1 {[%emt 0:01:07]} Qe7 {[%emt 0:01:33]} 11. Qd3 {[%emt 0:03:54]} e5 {[%emt 0:08:19]} (11... Bxf3 12. Qxf3 c6 13. Ne4 Nxe4 14. Qxe4 Nf6 15. Qf3 Rfd8 16. Bd2 {½-½ (40) Swiercz,D (2627)-Ipatov,A (2630) Warsaw 2013}) 12. e4 {[%emt 0:09:18]} Rfd8 {[%emt 0:04:20]} 13. d5 {[%emt 0:01:32]} Nc5 {[%emt 0:00:07]} 14. Qe2 $146 {[%emt 0:00:04]} ({Predecessor:} 14. Qc2 Bd7 15. b4 Na6 16. a3 {1-0 (68) Grabarczyk,M (2450)-Skovgaard,P (2307) Ballerup 2010}) 14... Bd7 {[%emt 0:00:24]} 15. Nh4 {[%emt 0:05:50]} a5 {[%emt 0:06:08]} 16. Re1 {[%emt 0:08:01]} c6 {[%emt 0:05:23]} 17. Nf5 {[%emt 0:03:53]} Bxf5 {[%emt 0:00:56]} 18. exf5 {[%emt 0:00:05]} Nxd5 {[%emt 0:04:48]} 19. Nxd5 {[%emt 0:00:31]} cxd5 {[%emt 0:00:06]} 20. Bxd5 {[%emt 0:00:06]} Bc7 {[%emt 0:03:33]} 21. Bc4 {[%emt 0:03:26]} e4 {[%emt 0:06:24]} 22. Qg4 {[%emt 0:01:13]} Be5 $11 {[%emt 0:01:40]} 23. Be3 {[%emt 0:09:57]} Bxb2 {[%emt 0:02:14]} 24. Rab1 {[%emt 0:00:48]} Bd4 {[%emt 0:01:10]} 25. h4 {[%emt 0:10:07]} Kh8 {[%emt 0:03:21]} 26. Bg5 {[%emt 0:01:59]} f6 {[%emt 0:01:34]} 27. Be3 {[%emt 0:00:16]} Bxe3 {[%emt 0:01:12]} 28. Rxe3 {[%emt 0:00:07]} Rd4 {[%emt 0:00:09]} 29. Bf1 {[%emt 0:02:40]} Rd2 {[%emt 0:03:48]} 30. a3 {[%emt 0:00:11]} Rad8 {[%emt 0:02:55]} 31. Bg2 {[%emt 0:03:39]} R8d3 {[%emt 0:00:41]} 32. Rbe1 {[%emt 0:00:45]} Rxe3 {[%emt 0:01:53]} 33. Rxe3 {[%emt 0:00:01]} Rd4 {[%emt 0:01:43]} 34. Qe2 {[%emt 0:00:42]} h6 {[%emt 0:02:58]} 35. f3 {[%emt 0:02:49]} Nd3 {[%emt 0:04:23]} 36. Rxe4 {[%emt 0:02:53]} Rxe4 {[%emt 0:00:31]} 37. Qxe4 {[%emt 0:00:54]} Qxe4 {[%emt 0:00:12]} 38. fxe4 {[%emt 0:00:02]} Nc5 {[%emt 0:08:44]} 39. Kf2 {[%emt 0:01:07]} b5 {[%emt 0:00:25]} 40. Ke3 {[%emt 0:00:00]} b4 {[%emt 0:00:00]} 41. axb4 {[%emt 0:00:51]} axb4 {[%emt 0:00:18]} 42. Bf1 {[%emt 0:00:21]} Kg8 {[%emt 0:03:29]} 43. Bc4+ {[%emt 0:00:07]} Kf8 {[%emt 0:00:05]} 44. Kd4 {[%emt 0:00:20]} Nd7 {[%emt 0:09:02]} 45. Be6 {[%emt 0:00:50]} Ke7 {[%emt 0:02:44]} 46. Kc4 {[%emt 0:01:10]} b3 {[%emt 0:02:39]} 47. Kxb3 {[%emt 0:00:04]} Nc5+ {[%emt 0:00:06]} 48. Kc4 {[%emt 0:00:06]} Nxe4 {[%emt 0:00:25]} 49. Kd4 {[%emt 0:01:09]} Nxg3 {[%emt 0:00:10]} 50. Ke3 {[%emt 0:01:15]} g6 {[%emt 0:01:24]} 51. Kf4 {[%emt 0:01:06]} Nh5+ {[%emt 0:00:20]} 52. Ke4 {[%emt 0:02:20]} Ng7 {[%emt 0:02:06]} 53. Bc8 {[%emt 0:00:22]} Kd8 {[%emt 0:00:11]} 0-1